Cogmind - Beta 13 @@@ ROGUE MODE // 2024.04.05 @ 17:27:50 Player: Rougue Result: Destroyed by H-61 Shepherd with Heavy Assault Cannon Performance ------------- Evolutions (2) 1000 Regions Visited (7) 1400 Robots Destroyed (45) 225 Value Destroyed (1308) 1308 Prototype IDs (29) 580 Alien Tech Used (0) 0 Bonus (1211) 1211 TOTAL SCORE: 5724 Bonus ------- High Alert Combat Kills 70 Follower Combat Kills 141 Entered Garrisons 200 Used RIF Installer 500 Aligned with FarCom 300 Cogmind --------- Core Integrity 0/550 Matter 104/300 Energy 79/100 System Corruption 0% Temperature Cool (0) Movement Core (50) Location -8/Materials Parts ------- > --- POWER (1) -------- (None) > --- PROPULSION (4) --- (None) > --- UTILITY (4) ------ (None) > --- WEAPON (2) ------- (None) > --- INVENTORY (5) ---- High-capacity Matter Pod (0) Authchip [R/Combat] Relay Coupler [NC] (28) Trap Reconfigurator Peak State ------------ > --- POWER ------------ Light Ion Engine > --- PROPULSION ------- Flight Unit VTOL Module VTOL Module VTOL Module > --- UTILITY ---------- Small Storage Unit Improved Signal Interpreter Reaction Control System Trap Reconfigurator > --- WEAPON ----------- Mini Grenade Launcher Improved Grenade Launcher > --- INVENTORY -------- Deuterium Engine Compact Wheel High-capacity Matter Pod ECM Suite Authchip [R/Combat] Light Assault Rifle Light Assault Rifle [Rating: 30] Favorites ----------- Power Ion Engine Engine Ion Engine Propulsion Light Treads Treads Light Treads Wheel Compact Wheel Flight Unit VTOL Module Utility Signal Interpreter Device Trap Reconfigurator Storage High-capacity Storage Unit Processor Signal Interpreter Weapon Light Assault Rifle Energy Gun Heavy EM Pulse Gun Ballistic Gun Light Assault Rifle Launcher Grenade Launcher Slashing Weapon Katana Build | -11 -10 -10 -10 -9 -8 -8 -8 ------- Run | Yrd Mat Min Exi Min Mat Gar Mat Slots Evolved 4 | . . . . . 4 . . Power . | . . . . . . . . Propulsion 2 | . . . . . 2 . . Utility 2 | . . . . . 2 . . Weapon . | . . . . . . . . Parts Attached 59 | 7 6 1 . 3 15 20 7 Power 7 | 1 2 . . . 1 2 1 Engine 7 | 1 2 . . . 1 2 1 Core . | . . . . . . . . Reactor . | . . . . . . . . Propulsion 13 | 2 1 . . 1 6 2 1 Treads 4 | 2 1 . . 1 . . . Leg . | . . . . . . . . Wheel 1 | . . . . . . . 1 Hover . | . . . . . . . . Flight 8 | . . . . . 6 2 . Utility 12 | 2 2 . . . 4 3 1 Device 6 | 1 . . . . 2 2 1 Storage 4 | 1 1 . . . 1 1 . Processor 2 | . 1 . . . 1 . . Hackware . | . . . . . . . . Protection . | . . . . . . . . Artifact . | . . . . . . . . Weapon 27 | 2 1 1 . 2 4 13 4 Energy Gun 3 | . . . . . . . 3 Energy Cannon . | . . . . . . . . Ballistic Gun 12 | 2 1 . . 1 2 6 . Ballistic Cannon . | . . . . . . . . Launcher 10 | . . 1 . 1 2 6 . Special Weapon . | . . . . . . . . Impact Weapon . | . . . . . . . . Slashing Weapon 2 | . . . . . . 1 1 Piercing Weapon . | . . . . . . . . Special Melee Weapon . | . . . . . . . . Unidentified Prototypes . | . . . . . . . . Parts Lost 20 | . 2 . . . . 6 12 Power 4 | . 1 . . . . 1 2 Propulsion 6 | . . . . . . 3 3 Utility 3 | . . . . . . 1 2 Weapon 7 | . 1 . . . . 1 5 Highest Loss Streak 12 | . 2 . . . . 4 12 To Critical Strikes . | . . . . . . . . Average Slot Usage (%) 98 | . 98 100 100 100 99 95 49 Engine 12 | . 13 14 14 14 9 8 4 Treads 21 | . 27 28 28 28 . . . Flight 7 | . . . . . 36 33 13 Device 4 | . 2 . . . 17 16 4 Storage 12 | . 14 14 14 14 9 9 5 Processor 11 | . 11 14 14 14 9 9 9 Ballistic Gun 18 | . 27 18 14 15 11 7 . Launcher 6 | . . 9 14 12 6 9 4 Naked Turns . | . . . . . . . . Heaviest Build 49 | 12 48 49 49 49 18 17 12 Greatest Support 40 | 40 40 40 40 40 16 16 16 Greatest Overweight (x) 1 | . 1 1 1 1 1 1 . Average Overweight (x) . | . . 1 1 1 . . . Largest Inventory Capacity 20 | 8 20 20 20 20 20 8 8 Average Capacity 16 | 7 17 20 20 20 8 8 6 Most Carried 20 | 5 19 19 20 20 19 8 8 Average Carried 14 | 2 12 19 19 19 8 6 6 Final Capacity 20 | 8 20 20 20 20 8 8 5 Final Carried 20 | 3 19 19 20 20 8 7 4 Class Distribution -------------------- 85% | Mutant 14% | Sprinter Dominant Class ---------------- Mutant | -10/Materials Mutant | -10/Mines Mutant | -10/Exiles Mutant | -9/Mines Sprinter | -8/Materials Sprinter | -8/Garrison Sprinter | -8/Materials Resources | -11 -10 -10 -10 -9 -8 -8 -8 ----------- Run | Yrd Mat Min Exi Min Mat Gar Mat Matter Collected 1189 | 261 452 18 . 55 43 296 64 Remotely 196 | 105 91 . . . . . . Salvage Created 894 | 58 393 41 . 34 25 282 61 Parts 66 | 3 23 7 . 2 9 16 6 Haulers Intercepted 2 | . 1 . . . . . 1 Recyclers Shooed 1 | 1 . . . . . . . Parts Field Recycled . | . . . . . . . . Retrieved Matter . | . . . . . . . . Parts Self-Destructed . | . . . . . . . . Prevented . | . . . . . . . . Kills | -11 -10 -10 -10 -9 -8 -8 -8 ------- Run | Yrd Mat Min Exi Min Mat Gar Mat Combat Hostiles Destroyed 38 | . 8 3 . 3 6 16 2 Guns 12 | . 8 2 . 1 . 1 . AOE 26 | . . 1 . 2 6 15 2 Classes Destroyed 10 | 1 5 . . 1 . 1 2 Worker 1 | . . . . . . . 1 Hauler 2 | . 1 . . . . . 1 Recycler 1 | 1 . . . . . . . Operator 1 | . 1 . . . . . . Watcher 2 | . 2 . . . . . . Swarmer 24 | . 2 3 . 2 6 10 1 Cutter 1 | . . . . . . . 1 Grunt 7 | . 6 . . . . 1 . Sentry 5 | . . . . 1 . 4 . Programmer 1 | . . . . . . 1 . Best Kill Streak 11 | 1 4 2 . 2 3 11 4 Combat Bots Only 11 | . 4 2 . 2 3 11 2 Max Kills in Single Turn 3 | 1 1 1 . 1 3 3 1 Gunslinging . | . . . . . . . . Exploded 3 | . . 1 . 1 3 3 1 Melee . | . . . . . . . . Uniques/NPCs Destroyed . | . . . . . . . . Combat | -11 -10 -10 -10 -9 -8 -8 -8 -------- Run | Yrd Mat Min Exi Min Mat Gar Mat Hostile Shots Fired 187 | . 79 16 . 11 2 30 49 Missed 64 | . 26 5 . 4 . 11 18 Damage Taken 1978 | . 548 96 . 52 18 357 907 Core 664 | . 81 10 . 12 . 45 516 Absorbed by Shields . | . . . . . . . . Regen/Repaired (Parts) 135 | . 135 . . . . . . Core Remaining (%) 79 | 100 . . . 58 . . . Volleys Fired 118 | 7 60 11 . 7 2 21 10 Largest 2 | 2 2 2 . 2 2 2 1 Hottest 66 | 40 40 50 . 50 66 66 45 Shots Fired 206 | 11 116 12 . 14 4 39 10 Gun 162 | 11 116 11 . 7 1 10 6 Cannon . | . . . . . . . . Launcher 44 | . . 1 . 7 3 29 4 Special . | . . . . . . . . Kinetic 156 | 11 116 11 . 7 1 10 . Thermal . | . . . . . . . . Explosive 44 | . . 1 . 7 3 29 4 Electromagnetic 6 | . . . . . . . 6 Robot Hit Streak 11 | 4 11 5 . 6 1 3 4 Robot Miss Streak 6 | 1 6 1 . 3 1 2 3 Penetration Max . | . . . . . . . . Secondary Targets 2 | . 2 . . . . . . Max Gunslinging Chain 1 | . 1 . . . . . . Shots Hit Robots 107 | 7 64 8 . 7 1 13 7 Core Hits 92 | 2 31 5 . 7 9 31 7 Critical Kills . | . . . . . . . . Critical Parts Destroyed 1 | . . . . 1 . . . Critical Strikes 1 | . . . . 1 . . . Destroy 1 | . . . . 1 . . . Melee Attacks 3 | . . . . . . . 3 Impact . | . . . . . . . . Slashing 3 | . . . . . . . 3 Piercing . | . . . . . . . . Sneak Attacks . | . . . . . . . . Combat Hostiles . | . . . . . . . . Follow-up Attacks . | . . . . . . . . Damage Inflicted 3262 | 86 621 87 . 202 337 1483 446 Guns 852 | 86 607 69 . 21 . 33 36 Cannons . | . . . . . . . . Explosions 2367 | . . 18 . 181 337 1450 381 Melee 29 | . . . . . . . 29 Ramming 14 | . 14 . . . . . . Kinetic 816 | 86 607 69 . 21 . 33 . Thermal . | . . . . . . . . Explosive 2367 | . . 18 . 181 337 1450 381 Electromagnetic 36 | . . . . . . . 36 Impact . | . . . . . . . . Slashing 29 | . . . . . . . 29 Piercing . | . . . . . . . . Highest Corruption . | . . . . . . . . Average Corruption . | . . . . . . . . Corruption Purged . | . . . . . . . . Corruption Blocked . | . . . . . . . . Overload Shots . | . . . . . . . . Overflow Damage 67 | . . . . . . 42 25 Projectiles . | . . . . . . . . Explosions 67 | . . . . . . 42 25 Melee . | . . . . . . . . Knockbacks . | . . . . . . . . Impact . | . . . . . . . . Kinetic . | . . . . . . . . Secondary . | . . . . . . . . Self-Inflicted Damage 110 | . . . . . . 110 . Shots 3 | . . . . . . 3 . Rammed 3 | . 3 . . . . . . Targets Rammed 3 | . 3 . . . . . . Kicked . | . . . . . . . . Crushed . | . . . . . . . . Highest Temperature 24 | . 24 10 . 20 10 21 . Average Temperature 9 | . 11 7 . 8 8 8 . Received Heat Transfer 354 | . 228 . . . . 54 72 Siege Activations . | . . . . . . . . Robots Corrupted . | . . . . . . . . Combat Hostiles . | . . . . . . . . Parts Fried . | . . . . . . . . Impact Corruptions . | . . . . . . . . Robots Melted . | . . . . . . . . Combat Hostiles . | . . . . . . . . Parts Melted 1 | . . . . 1 . . . Heat Transferred . | . . . . . . . . Parts Sabotaged . | . . . . . . . . Parts Stolen . | . . . . . . . . Parts Stripped . | . . . . . . . . Power Chain Reactions . | . . . . . . . . Alert | -11 -10 -10 -10 -9 -8 -8 -8 ------- Run | Yrd Mat Min Exi Min Mat Gar Mat Peak Influence 877 | 5 165 108 . 80 212 877 495 Initial 427 | . 3 1 . . 8 140 427 Average 87 | 1 53 29 . 17 31 559 449 Maximum Alert Level 3 | . . . . . 1 3 2 Low Security (%) 91 | 100 100 100 . 100 97 23 . Level 1 1 | . . . . . 2 13 . Level 2 3 | . . . . . . 13 100 Level 3 4 | . . . . . . 49 . Level 4 . | . . . . . . . . Level 5 . | . . . . . . . . High Security . | . . . . . . . . Max Security . | . . . . . . . . Squads Dispatched 4 | . 1 . . . 1 . 2 Investigation 1 | . . . . . 1 . . Extermination . | . . . . . . . . Reinforcement 3 | . 1 . . . . . 2 Assault . | . . . . . . . . Garrison . | . . . . . . . . Intercept . | . . . . . . . . Searches Triggered . | . . . . . . . . Construction Impeded . | . . . . . . . . Haulers Reinforced . | . . . . . . . . Active Scanning Responses . | . . . . . . . . Cargo Convoy Interrupts . | . . . . . . . . Stealth | -11 -10 -10 -10 -9 -8 -8 -8 --------- Run | Yrd Mat Min Exi Min Mat Gar Mat Distress Signals 1 | . . . . . 1 . . Communications Jammed . | . . . . . . . . Distress Signals . | . . . . . . . . Times Spotted 75 | . 33 4 . 7 5 19 7 Peak Tracking Total 6 | . 6 3 . 4 5 4 5 Tactical Retreats 3 | . 1 1 . 1 . . . Traps | -11 -10 -10 -10 -9 -8 -8 -8 ------- Run | Yrd Mat Min Exi Min Mat Gar Mat Traps Triggered 3 | . . . . . . 3 . Indirectly . | . . . . . . . . Trap Hack Attempts . | . . . . . . . . Triggered . | . . . . . . . . Disarmed . | . . . . . . . . Reprogrammed . | . . . . . . . . Reused . | . . . . . . . . Traps Reconfigurated 1 | . . . . . . 1 . Traps Extracted . | . . . . . . . . Installed . | . . . . . . . . Triggered . | . . . . . . . . Machines | -11 -10 -10 -10 -9 -8 -8 -8 ---------- Run | Yrd Mat Min Exi Min Mat Gar Mat Machines Disabled 7 | . . . . 2 1 4 . Max in Single Turn 2 | . . . . 2 . 1 . Garrison Relay 2 | . . . . . . 2 . Machines Repaired . | . . . . . . . . Machines Dismantled . | . . . . . . . . Machines Sabotaged . | . . . . . . . . Overloaded Fab Kills . | . . . . . . . . Hacking | -11 -10 -10 -10 -9 -8 -8 -8 --------- Run | Yrd Mat Min Exi Min Mat Gar Mat Machines Accessed 20 | . 10 . 2 . 5 3 . Terminals 13 | . 7 . . . 3 3 . Fabricators . | . . . . . . . . Repair Stations 1 | . 1 . . . . . . Recycling Units 2 | . 2 . . . . . . Scanalyzers 1 | . . . . . 1 . . Garrison Access 1 | . . . . . 1 . . Total Hacks 52 | . 29 . 2 . 15 6 . Successful 25 | . 14 . 2 . 8 1 . Failed 27 | . 15 . . . 7 5 . Catastrophic 5 | . 3 . . . . 2 . Database Lockouts . | . . . . . . . . Manual 17 | . 8 . 3 . 6 . . Terminals 38 | . 23 . . . 9 6 . Fabricators . | . . . . . . . . Repair Stations 3 | . 3 . . . . . . Recycling Units 3 | . 3 . . . . . . Scanalyzers 3 | . . . . . 3 . . Garrison Access 3 | . . . . . 3 . . Terminal Hacks 18 | . 9 . 2 . 6 1 . Record 1 | . . . 1 . . . . Prototype ID Bank 6 | . 4 . . . 2 . . Alert Level 1 | . . . . . 1 . . Locate Traps 3 | . 1 . . . 2 . . Maintenance Status 1 | . 1 . . . . . . Hauler Manifests 2 | . 1 . . . 1 . . Zone Layout 2 | . 2 . . . . . . Patrol Navigation 1 | . . . . . . 1 . Derelict Proto ID Bank 1 | . . . 1 . . . . Fabricator Hacks . | . . . . . . . . Repair Station Hacks 2 | . 2 . . . . . . Scan Component 1 | . 1 . . . . . . Repair 1 | . 1 . . . . . . Recycling Unit Hacks 3 | . 3 . . . . . . Report Inventory 2 | . 2 . . . . . . Retrieve Components 1 | . 1 . . . . . . Scanalyzer 1 | . . . . . 1 . . Insert Component 1 | . . . . . 1 . . Garrison Access Hacks 1 | . . . . . 1 . . Unlock Access 1 | . . . . . 1 . . Unauthorized Hacks . | . . . . . . . . Terminals . | . . . . . . . . Fabricators . | . . . . . . . . Repair Stations . | . . . . . . . . Recycling Units . | . . . . . . . . Scanalyzers . | . . . . . . . . Garrison Access . | . . . . . . . . Data Cores Recovered . | . . . . . . . . Used . | . . . . . . . . Hacking Detections 14 | . 8 . . . 3 3 . Full Trace Events 2 | . . . . . 1 1 . Feedback Events . | . . . . . . . . Feedback Blocked . | . . . . . . . . Robot Schematics Acquired . | . . . . . . . . Robots Built . | . . . . . . . . Authchips . | . . . . . . . . Time . | . . . . . . . . Total Robot Build Rating . | . . . . . . . . Part Schematics Acquired . | . . . . . . . . Parts Built . | . . . . . . . . Authchips . | . . . . . . . . Time . | . . . . . . . . Total Part Build Rating . | . . . . . . . . Parts Repaired 1 | . 1 . . . . . . Time 26 | . 26 . . . . . . Parts Recycled . | . . . . . . . . Recycled Matter . | . . . . . . . . Retrieved Matter . | . . . . . . . . Retrieved Components 3 | . 3 . . . . . . Parts Scanalyzed . | . . . . . . . . Part Schematics Acquired . | . . . . . . . . Parts Damaged . | . . . . . . . . Bothacking | -11 -10 -10 -10 -9 -8 -8 -8 ------------ Run | Yrd Mat Min Exi Min Mat Gar Mat Used RIF Installer 1 | . . . . . . 1 . Robots Hacked . | . . . . . . . . Non-combat . | . . . . . . . . Combat . | . . . . . . . . Robot Hacks Applied . | . . . . . . . . Relay Couplers Released 11 | . . . . . . 11 . Machine Destruction 7 | . . . . . . 7 . Programmers 4 | . . . . . . 4 . Fabnet Peak Effective % . | . . . . . . . . Robots Rewired . | . . . . . . . . Allies Hacked . | . . . . . . . . Hacks Repelled . | . . . . . . . . Allies | -11 -10 -10 -10 -9 -8 -8 -8 -------- Run | Yrd Mat Min Exi Min Mat Gar Mat Total Allies 5 | . . . . 3 . 2 . Largest Group 3 | . . . . 3 2 2 2 Highest-Rated Group 70 | . . . . 40 32 70 70 Highest-Rated Ally 39 | . . . . 16 16 39 39 Total Orders 1 | . . . . . 1 . . ROAM 1 | . . . . . 1 . . Ally Attacks 43 | . . . . 14 8 9 12 Total Damage 584 | . . . . 143 55 120 266 Kills 9 | . . . . 2 2 3 2 Allies Corrupted . | . . . . . . . . Allies Melted . | . . . . . . . . Intel | -11 -10 -10 -10 -9 -8 -8 -8 ------- Run | Yrd Mat Min Exi Min Mat Gar Mat Robot Analysis Total . | . . . . . . . . Derelict Logs Recovered 2 | . . . . 2 . . . Drone Launches . | . . . . . . . . Drone Recoveries . | . . . . . . . . Exploration | -11 -10 -10 -10 -9 -8 -8 -8 ------------- Run | Yrd Mat Min Exi Min Mat Gar Mat Turns Passed 5741 | 115 2071 231 537 1566 683 431 107 Spaces Moved 2914 | 49 815 84 224 601 532 538 71 Core 13 | 3 . . . . . . 10 Treads 1770 | 46 815 84 224 601 . . . Legs . | . . . . . . . . Wheels 15 | . . . . . . . 15 Hover . | . . . . . . . . Flight 1116 | . . . . . 532 538 46 Fastest Speed 26 | 50 160 240 240 240 26 26 30 Average Speed 151 | 153 219 240 240 240 26 35 47 Slowest Speed 240 | 160 240 240 240 240 106 114 100 Overloaded Moves . | . . . . . . . . Propulsion Burnouts . | . . . . . . . . Robots Hopped 1 | . . . . . 1 . . Cave-ins Triggered . | . . . . . . . . Exploration Rate (%) 48 | 5 98 17 60 98 45 58 7 Regions Visited 7 Branch Regions 3 Pre-discovered Areas 1 | . . . . 1 . . . Known Exits Taken 5 | . 1 1 1 1 1 . . Unknown Exits Taken 1 | 1 . . . . . . . Scrap Searched 3 | . . 1 . 2 . . . Spaces Dug 115 | . . . . 7 20 88 . Terrain Destroyed 303 | . . 7 . 44 31 197 24 Melee . | . . . . . . . . Projectile . | . . . . . . . . AOE 303 | . . 7 . 44 31 197 24 Terrain Rammed . | . . . . . . . . Walls Destroyed . | . . . . . . . . Machines Disabled . | . . . . . . . . Actions | -11 -10 -10 -10 -9 -8 -8 -8 --------- Run | Yrd Mat Min Exi Min Mat Gar Mat Total 4037 | 76 993 104 224 712 1067 732 129 Wait 838 | 8 91 9 . 98 502 95 35 Move 2906 | 48 814 83 223 600 530 537 71 Hop 1 | . . . . . 1 . . Pick Up 33 | 5 17 . 1 2 5 3 . Fast Attach 12 | 6 2 . . . . . 4 Attach 14 | 1 1 . . . 4 5 3 Detach 4 | . 1 . . . . 1 2 Swap 33 | . 3 1 . 3 11 15 . Drop 18 | 1 1 . . 2 12 1 1 Fire 118 | 7 60 11 . 7 2 21 10 Melee 3 | . . . . . . . 3 Ram . | . . . . . . . . Kick . | . . . . . . . . Crush 3 | . 3 . . . . . . Escape Stasis 54 | . . . . . . 54 . Rewire . | . . . . . . . . Trap . | . . . . . . . . Miscellaneous . | . . . . . . . . Route ------- -11/Scrapyard -10/Materials (discovered 5 exits: *Mat x3 / *Min x2) -10/Mines -10/Exiles -9/Mines (discovered 2 exits: *Mat x2) -8/Materials (discovered 3 exits: *Fac x2 / Gar) -8/Garrison (discovered 2 exits: *Mat x2) -8/Materials History --------- Turn | Location | Event 4 | -11/Scrapyard | Discovered new exit (range 15) 116 | -11/Scrapyard | Entered Materials 307 | -10/Materials | Build established: Mutant 344 | -10/Materials | Discovered new exit (range 15) 347 | -10/Materials | Discovered new exit (range 6) 582 | -10/Materials | Discovered new exit (range 16) 1308 | -10/Materials | Discovered new exit (range 16) 1347 | -10/Materials | Repaired Lgt. Treads 1404 | -10/Materials | Identified exit to Mines 1649 | -10/Materials | Identified exit to Materials 2057 | -10/Materials | Discovered exit to Materials (range 15) 2187 | -10/Materials | Entered Mines 2253 | -10/Mines | Assembled infested the area 2285 | -10/Mines | Discovered new exit (range 5) 2416 | -10/Mines | Identified exit to Exiles 2418 | -10/Mines | Entered Exiles 2476 | -10/Exiles | Met 8R-AWN 2519 | -10/Exiles | Met EX-HEX 2584 | -10/Exiles | Met EX-BIN 2610 | -10/Exiles | Aligned with FarCom system 2613 | -10/Exiles | Given EX-Vault access code 2668 | -10/Exiles | Opened EX-Vault 2682 | -10/Exiles | Found Trap Reconfigurator 2731 | -10/Exiles | Warned to stay clear of 0b10 Research branches 2796 | -10/Exiles | Met EX-DEC 2926 | -10/Exiles | Discovered new exit (range 14) 2952 | -10/Exiles | Identified exit to Mines 2955 | -10/Exiles | Left Exiles lab with Trap Reconfigurator 2955 | -10/Exiles | Entered Mines 3017 | -9/Mines | Discovered new exit (range 4) 3024 | -9/Mines | Identified exit to Materials 3159 | -9/Mines | Discovered exit to Materials (range 5) 3551 | -9/Mines | Assisted by bots powering up and referring to "LRC-V3" 3553 | -9/Mines | Learned 2 Materials zone layouts 3592 | -9/Mines | Received a Rocket Launcher from a helpful Derelict 3900 | -9/Mines | Learned location of Storage (-9) 4521 | -9/Mines | Entered Materials 4521 | -8/Materials | Accompanied by 2 allies 4521 | -8/Materials | Evolved 4 slots: Propulsion x2, Utility x2 4522 | -8/Materials | Identified exit to Factory 4821 | -8/Materials | Build established: Sprinter 5133 | -8/Materials | Discovered exit to Factory (range 16) 5204 | -8/Materials | Identified exit to Garrison 5204 | -8/Materials | Entered Garrison 5300 | -8/Garrison | Triggered checkpoint 5352 | -8/Garrison | Rescued a captive Derelict 5353 | -8/Garrison | Rescued a captive Derelict 5402 | -8/Garrison | Triggered checkpoint 5445 | -8/Garrison | Destroyed 11 combat bots 5452 | -8/Garrison | Discovered new exit (range 11) 5477 | -8/Garrison | Lost 4 parts (1p1n1u1w) 5521 | -8/Garrison | Discovered new exit (range 8) 5523 | -8/Garrison | Identified exit to Materials 5534 | -8/Garrison | Triggered checkpoint 5540 | -8/Garrison | Triggered checkpoint 5541 | -8/Garrison | Installed Relay Interface Framework 5549 | -8/Garrison | Garrison Relay disabled 5635 | -8/Garrison | Entered Materials 5635 | -8/Materials | Accompanied by 2 allies 5708 | -8/Materials | Core integrity fell below 50% 5733 | -8/Materials | Core integrity fell below 20% 5742 | -8/Materials | Destroyed by H-61 Shepherd with Heavy Assault Cannon Last Messages --------------- 05731_ Acquired Lgt. Ion Engine. 05731_ U-05 Engineer lays Concrete. 05732_ Penetrated by Slug. 05732_ Knocked back. 05732_ U-05 Engineer lays Concrete. 05733_ U-05 Engineer builds a Wall. 05734_ U-05 Engineer lays Concrete. 05736_ U-05 Engineer builds a Wall. 05737_ U-05 Engineer lays Concrete. 05737_ Hvy. EM Pulse Gun destroyed. 05737_ Lgt. Ion Engine destroyed. 05738_ U-05 Engineer builds a Wall. 05741_ U-05 Engineer lays Concrete. 05741_ Acquired 50 matter. 05742_ R-06 Scavenger collects Prototype Energy Gun. 05742_ U-05 Engineer lays Concrete. 05742_ Com. Wheel destroyed. 05742_ Imp. Signal Interpreter destroyed. 05742_ Critical hit (Blast). Map ----- +----------------------------------------------------+ | | | | | | | | | | | | | | | | | ?????????????????????????????????????????????????? | | ?????????????????????????????????????????????????? | | ?????????????????????????????????????????????????? | | ????????????????????????????##???????????????????? | | ############################;????????????????????? | | #????????????????????? | | #????????????????????? | | %##???????????????????? | | ###+##########;###### ## %= ###?????????????????? | | # #?????# %] #?????????????????? | | # """ #????###Y ! #?????????????????? | | # """ #????# ; u# ##?????????????????? | | # """ [#?????#;% # #?????????????????? | | # #??????# [ ## #??????????? | | # !#?????## *u*##????"" ????????????? | | ########?????#;%%! !#????????????????????? | | ?????????????## H = %#????????????????????? | | ??????????????### % @=/#????????????????????? | | ????????????????# # !% ##???????????????????? | | ????????????????####### # # ??????????????????? | | ??????????????????????# [ %# "?????????????????? | | ??????????????????????#*[% r# ????????????????? | | ??????????????????????# =[ # ###???????????????? | | ?????????????????????? ??s?????????????? | | ????????????????????? % ???g??w????????? | | ????????????????????? ??????????????? | | ????????????????????+### #### ?????????????? | | ???????????????????????# #? #????????????? | | ???????????????????????## ####?? ?????????????? | | ????????????????????????? #????????????????????? | | ????????????????????????? #????????????????????? | | ????????????????????????? #????????????????????? | | ????????????????????????? ?????????????????????? | | ?????????????????????????????????????????????????? | | ?????????????????????????????????????????????????? | | ?????????????????????????????????????????????????? | | ?????????????????????????????????????????????????? | | ?????????????????????????????????????????????????? | | ?????????????????????????????????????????????????? | | ?????????????????????????????????????????????????? | | ?????????????????????????????????????????????????? | | ?????????????????????????????????????????????????? | +----------------------------------------------------+ Best States ------------- Heat Dissipation 31 Energy Generation 10 Energy Capacity 250 Matter Stores 300 Matter Capacity 300 Sight Range 16 Terrain Scan Density 10 ECM Strength 1 Evasion (%) 72 Recoil Reduction 2 Authchip Count 1 Item Schematics ----------------- None Robot Schematics ------------------ None Fabricated ------------ Nothing Alien Tech Used ----------------- None Achievements -------------- Dramatic Entrance Challenges ------------ None Game ------ Seed PlasmaTrackerInterpreter Manual? 0 Play Time 01:18:50 Cumulative 33.5 hours Start 2024.04.05 @ 08:06:28 End 2024.04.05 @ 17:27:50 Sessions 5 Manual Loads 0 Difficulty Rogue Special Mode None Game No. 65 Rogue 65 Adventurer 0 Explorer 0 Win Type - Total 0 Types 0/0/0/0/0/0/0/0/0 Lore% 22 Gallery% 22 Achievement% 22 Wizard Run 0 Options --------- Layout 1 ASCII 0 Keyboard 0 Movement Mouse Keybinds 0 Fullscreen 2 Font 24/Smallcaps Map View 50x35 Zoom Use 0% Tactical HUD 1 Map Filters NONE Filters NONE Steam 1 RUN: bd26446b-cc6c-40fd-86af-78e97153b33d